bitfinex-derivatives/quotes_BTCF0:USTF0_20250911
["timestamp","ask_amount","ask_price","bid_price","bid_amount"]
[1757622920775,0.81961,114370.0,114360.0,0.31943296]
[1757622920980,0.81961,114370.0,114360.0,0.20379617]
[1757622923982,0.81961,114370.0,114360.0,0.46799617]
[1757622928785,0.02173,114370.0,114360.0,0.46799617]
[1757622928986,0.81901,114370.0,114360.0,0.20379617]
[1757622931185,0.81901,114370.0,114360.0,0.28243205]
[1757622935191,0.81901,114370.0,114360.0,0.16679526]
[1757622935376,0.81901,114370.0,114360.0,0.28243205]
[1757622937290,0.81901,114370.0,114360.0,0.20379617]
[1757622938786,0.81901,114370.0,114360.0,0.46799617]
[1757622939287,0.81901,114370.0,114360.0,0.41673679]
[1757622942685,0.81901,114370.0,114360.0,0.49537267]
[1757622944092,0.81901,114370.0,114360.0,0.23117267]
[1757622948084,0.81901,114370.0,114360.0,0.15253679]
[1757622953595,0.81901,114370.0,114360.0,0.41673679]
[1757622954494,0.81901,114370.0,114360.0,0.37973588]
[1757622954693,0.81901,114370.0,114360.0,0.49537267]
[1757622954995,0.09047945,114380.0,114370.0,0.03438]
[1757622955292,0.88619945,114380.0,114370.0,0.15001679]
[1757622955493,0.88619945,114380.0,114370.0,0.20127617]
[1757622956292,0.88719945,114380.0,114370.0,0.20127617]
[1757622957081,0.88719945,114380.0,114370.0,0.08563938]
[1757622957286,0.88619945,114380.0,114370.0,0.20127617]
[1757622959297,0.88619945,114380.0,114370.0,0.20227617]
[1757622965603,0.88619945,114380.0,114370.0,0.46647617]
[1757622965898,0.88619945,114380.0,114370.0,0.20227617]
[1757622971399,0.88619945,114380.0,114370.0,0.46647617]
[1757622973003,0.88619945,114380.0,114370.0,0.20227617]
[1757622982215,1.37929303,114380.0,114370.0,0.001]
[1757622982418,1.49494921,114380.0,114370.0,0.001]
[1757622985116,1.49494921,114380.0,114370.0,0.07963588]
[1757622985617,1.49494921,114380.0,114370.0,0.001]
[1757622989818,0.69922921,114380.0,114370.0,0.001]
[1757622990021,1.49318921,114380.0,114370.0,0.001]
[1757622999325,1.24318921,114380.0,114370.0,0.001]
[1757623000114,1.24318921,114380.0,114370.0,0.07963588]
[1757623003934,0.44922921,114380.0,114370.0,0.07963588]
[1757623004122,1.24314921,114380.0,114370.0,0.07963588]
[1757623004828,1.24314921,114380.0,114370.0,0.25310076]
[1757623005031,1.24314921,114380.0,114370.0,0.07963588]
[1757623005426,1.24314921,114380.0,114370.0,0.10224588]
[1757623005627,1.24314921,114380.0,114370.0,0.02361]
[1757623006035,1.06968433,114380.0,114370.0,0.19707488]
[1757623006541,1.06968433,114380.0,114370.0,0.001]
[1757623006937,1.24314921,114380.0,114370.0,0.17446488]
[1757623007845,1.24314921,114380.0,114370.0,0.001]
[1757623021358,1.24314921,114380.0,114370.0,0.05225938]
[1757623021560,1.26073194,114380.0,114370.0,0.05225938]
[1757623021858,0.46681194,114380.0,114370.0,0.05225938]
[1757623022156,1.26069194,114380.0,114370.0,0.05225938]
[1757623022356,1.26069194,114380.0,114370.0,0.07371938]
[1757623022856,1.26069194,114380.0,114370.0,0.05225938]
[1757623023057,1.08722706,114380.0,114370.0,0.05225938]
[1757623023263,0.91376218,114380.0,114370.0,0.05225938]
[1757623023461,1.08722706,114380.0,114370.0,0.05225938]
[1757623023957,1.26069194,114380.0,114370.0,0.05225938]
[1757623024850,1.26069194,114380.0,114370.0,0.07371938]
[1757623026554,1.26069194,114380.0,114370.0,0.05225938]
[1757623027554,1.08722706,114380.0,114370.0,0.05225938]
[1757623028259,1.26069194,114380.0,114370.0,0.05225938]
[1757623028454,0.46681194,114380.0,114370.0,0.05225938]
[1757623028754,1.26069194,114380.0,114370.0,0.05225938]
[1757623033858,0.46681194,114380.0,114370.0,0.05225938]
[1757623034067,1.26069194,114380.0,114370.0,0.05225938]
[1757623035564,0.46681194,114380.0,114370.0,0.05225938]
[1757623035763,1.26069194,114380.0,114370.0,0.05225938]
[1757623037459,1.08722706,114380.0,114370.0,0.05225938]
[1757623039069,1.26069194,114380.0,114370.0,0.05225938]
[1757623042368,1.02939753,114380.0,114370.0,0.05225938]
[1757623042567,0.23551753,114380.0,114370.0,0.05225938]
[1757623042769,1.02935753,114380.0,114370.0,0.05225938]
[1757623043874,1.14499288,114380.0,114370.0,0.05225938]
[1757623048473,0.03404,114360.0,114350.0,0.18805221]
[1757623048678,0.94347535,114360.0,114340.0,0.22756562]
[1757623048870,0.94347535,114360.0,114350.0,0.05125938]
[1757623050577,0.94347535,114360.0,114350.0,0.12989526]
[1757623050880,0.94347535,114360.0,114350.0,0.13189526]
[1757623051776,0.14967535,114360.0,114350.0,0.13189526]
[1757623051977,0.94351535,114360.0,114350.0,0.13189526]
[1757623052671,0.94351535,114360.0,114350.0,0.12989526]
[1757623053972,0.14967535,114360.0,114350.0,0.12989526]
[1757623054179,0.94351535,114360.0,114350.0,0.12989526]
[1757623056478,0.14967535,114360.0,114350.0,0.12989526]
[1757623056777,0.14967535,114360.0,114350.0,0.15145526]
[1757623056980,0.14967535,114360.0,114350.0,0.26709061]
[1757623056981,0.60064,114360.0,114350.0,0.26709061]
[1757623057281,0.81706,114360.0,114350.0,0.28000061]
[1757623057669,0.81702,114360.0,114350.0,0.28000061]
[1757623058282,0.02322,114360.0,114350.0,0.28000061]
[1757623058478,0.58098,114360.0,114350.0,0.28000061]
[1757623058779,0.58098,114360.0,114350.0,0.20136473]
[1757623058974,0.02322,114360.0,114350.0,0.20136473]
[1757623059176,0.81702,114360.0,114350.0,0.20136473]
[1757623059482,0.81702,114360.0,114350.0,0.15010535]
[1757623060679,0.02322,114360.0,114350.0,0.20136473]
[1757623060885,0.58038,114360.0,114350.0,0.20136473]
[1757623063085,0.02322,114360.0,114350.0,0.20136473]
[1757623063280,0.02322,114360.0,114350.0,0.45136473]
[1757623063481,0.47094,114360.0,114350.0,0.45136473]
[1757623065583,0.81702,114360.0,114350.0,0.53000061]
[1757623066281,0.81702,114360.0,114350.0,0.79420061]
[1757623066483,0.81702,114360.0,114350.0,0.71556473]
[1757623072785,0.81702,114360.0,114350.0,0.79420061]
[1757623079004,0.81702,114360.0,114350.0,0.71556473]
[1757623081606,0.08603059,114380.0,114350.0,0.95120008]
[1757623081904,0.90109059,114380.0,114370.0,0.20154473]
[1757623082904,0.90309059,114380.0,114370.0,0.08590938]
[1757623083105,0.90309059,114380.0,114370.0,0.20154473]
[1757623083700,0.90409059,114380.0,114370.0,0.20154473]
[1757623095314,0.90409059,114380.0,114370.0,0.08590938]
[1757623095720,0.90409059,114380.0,114370.0,0.20154473]
[1757623102521,0.90385059,114380.0,114370.0,0.20154473]
[1757623104326,0.90385059,114380.0,114370.0,0.25932027]
[1757623106324,0.90385059,114380.0,114370.0,0.08590938]
[1757623106528,0.90385059,114380.0,114370.0,0.25932027]
[1757623110331,0.90385059,114380.0,114370.0,0.08590938]
[1757623110528,0.90385059,114380.0,114370.0,0.25932027]
[1757623114326,0.11037059,114380.0,114370.0,0.25932027]
[1757623114532,0.81649059,114380.0,114370.0,0.25932027]
[1757623119333,0.81649059,114380.0,114370.0,0.29546754]
[1757623121641,0.81649059,114380.0,114370.0,0.21683166]
[1757623121839,0.81649059,114380.0,114370.0,0.20806089]
[1757623125137,0.81549059,114380.0,114370.0,0.20806089]
[1757623125540,0.81449059,114380.0,114370.0,0.20806089]
[1757623125726,0.81349059,114380.0,114370.0,0.20806089]
[1757623128445,0.81349059,114380.0,114370.0,0.03465]
[1757623128643,0.81349059,114380.0,114370.0,0.20806089]
[1757623130141,0.81349059,114380.0,114370.0,0.28669677]
[1757623132445,0.81349059,114380.0,114370.0,0.20806089]
[1757623136451,0.81349059,114380.0,114370.0,0.28669677]
[1757623137445,0.10737059,114380.0,114370.0,0.28669677]
[1757623137643,0.10737059,114380.0,114370.0,0.51136704]
[1757623137848,0.08603059,114380.0,114370.0,0.76136704]
[1757623138042,0.10727059,114380.0,114370.0,0.76136704]
[1757623139448,0.10727059,114380.0,114370.0,0.68273116]
[1757623141747,0.10727059,114380.0,114370.0,0.76136704]
[1757623143046,0.11026619,114380.0,114370.0,0.76136704]
[1757623147448,0.11026619,114380.0,114370.0,0.68273116]
[1757623149349,0.11026619,114380.0,114370.0,0.76136788]
[1757623152148,0.11026619,114380.0,114370.0,0.68273116]
[1757623153954,0.09253505,114380.0,114370.0,0.68273116]
[1757623156549,0.09253505,114380.0,114370.0,0.76136788]
[1757623158056,0.09253505,114380.0,114370.0,0.68273116]
[1757623162062,0.09253505,114380.0,114370.0,0.51136788]
[1757623162262,0.34253505,114380.0,114370.0,0.33795699]
[1757623162963,0.34253505,114380.0,114370.0,0.25932027]
[1757623163163,0.34253505,114380.0,114370.0,0.33795699]
[1757623164359,0.34253505,114380.0,114370.0,0.28015971]
[1757623167267,0.34253505,114380.0,114370.0,0.20152299]
[1757623170874,0.09253505,114380.0,114370.0,0.08590938]
[1757623171066,0.09253505,114380.0,114370.0,0.20152299]
[1757623171966,0.09253505,114380.0,114370.0,0.28021945]
[1757623172470,0.09253505,114380.0,114370.0,0.16460584]
[1757623172670,0.09253505,114380.0,114370.0,0.28021945]
[1757623174475,0.09253505,114380.0,114370.0,0.20152299]
[1757623174672,0.09253505,114380.0,114370.0,0.31093932]
[1757623175173,0.88537505,114380.0,114370.0,0.31093932]
[1757623178073,0.09253505,114380.0,114370.0,0.31093932]
[1757623178276,0.88537505,114380.0,114370.0,0.28022101]
[1757623178476,0.88537505,114380.0,114370.0,0.1646074]
[1757623178682,0.88537505,114380.0,114370.0,0.28022101]
[1757623179273,0.88537505,114380.0,114370.0,0.22896163]
[1757623181071,0.88537505,114380.0,114370.0,0.25967994]
[1757623181680,0.88537505,114380.0,114370.0,0.14406633]
[1757623181979,0.88533505,114380.0,114370.0,0.25967994]
[1757623182478,0.09253505,114380.0,114370.0,0.25967994]
[1757623182672,0.88533505,114380.0,114370.0,0.25967994]
[1757623185178,0.09253505,114380.0,114370.0,0.25967994]
[1757623185370,0.88529505,114380.0,114370.0,0.25967994]
[1757623187178,0.88529505,114380.0,114370.0,0.33838059]
[1757623187370,0.88529505,114380.0,114370.0,0.15026361]
[1757623187772,0.09253505,114380.0,114370.0,0.15026361]
[1757623187974,0.88529505,114380.0,114370.0,0.15026361]
[1757623188380,0.09253505,114380.0,114370.0,0.15026361]
[1757623188581,0.88730505,114380.0,114370.0,0.15128361]
[1757623190076,0.09454505,114380.0,114370.0,0.22998426]
[1757623190283,0.88726505,114380.0,114370.0,0.22998426]
[1757623190479,0.88726505,114380.0,114370.0,0.15128361]
[1757623190982,0.88726505,114380.0,114370.0,0.03567]
[1757623191182,0.88726505,114380.0,114370.0,0.15128361]
[1757623192086,0.86401505,114380.0,114370.0,0.11561361]
[1757623192284,0.88651505,114380.0,114370.0,0.15104361]
[1757623194686,0.09379505,114380.0,114370.0,0.15104361]
[1757623194885,0.88651505,114380.0,114370.0,0.15104361]
[1757623197388,0.09379505,114380.0,114370.0,0.15104361]
[1757623197578,0.88643505,114380.0,114370.0,0.15104361]
[1757623201390,0.88643505,114380.0,114370.0,0.22974536]
[1757623201885,0.88639505,114380.0,114370.0,0.22974536]
[1757623202089,0.88639505,114380.0,114370.0,0.15104361]
[1757623208891,0.88639505,114380.0,114370.0,0.22974536]
[1757623209991,0.88639505,114380.0,114370.0,0.15104361]
[1757623210191,0.88639505,114380.0,114370.0,0.22974536]
[1757623211496,0.88639505,114380.0,114370.0,0.15104361]
[1757623211896,0.88639505,114380.0,114370.0,0.22974536]
[1757623212298,0.88639505,114380.0,114370.0,0.15104361]
[1757623214593,0.88639505,114380.0,114370.0,0.41524361]
[1757623214790,0.09379505,114380.0,114370.0,0.41524361]
[1757623214993,0.88631505,114380.0,114370.0,0.41524361]
[1757623215593,0.09379505,114380.0,114370.0,0.41524361]
[1757623215903,0.57147505,114380.0,114370.0,0.41524361]
[1757623217798,0.57147505,114380.0,114370.0,0.49394536]
[1757623220502,0.57147505,114380.0,114370.0,0.37833175]
[1757623220696,0.57147505,114380.0,114370.0,0.49394536]
[1757623221200,0.57147505,114380.0,114370.0,0.64027355]
[1757623221201,0.86377505,114380.0,114370.0,0.64027355]
[1757623221498,0.88627505,114380.0,114370.0,0.64027355]
[1757623221701,0.09379505,114380.0,114370.0,0.71897124]
[1757623221898,0.88627505,114380.0,114370.0,0.60955491]
[1757623222696,0.88627505,114380.0,114370.0,0.53085722]
[1757623224002,0.88627505,114380.0,114370.0,0.41524361]
[1757623226307,0.88627505,114380.0,114370.0,0.64642476]
[1757623232808,0.88627505,114380.0,114370.0,0.72512162]
[1757623234614,0.88627505,114380.0,114370.0,0.64642476]
[1757623234816,0.88627505,114380.0,114370.0,0.75584109]
[1757623235511,0.88627505,114380.0,114370.0,0.83453736]
[1757623235711,0.88627505,114380.0,114370.0,0.72512103]
[1757623242318,0.88627505,114380.0,114370.0,0.64642476]
[1757623242520,0.88627505,114380.0,114370.0,0.72512103]
[1757623243021,0.88627505,114380.0,114370.0,0.64642476]
[1757623245322,0.88627505,114380.0,114370.0,0.47302738]
[1757623247421,0.88627505,114380.0,114370.0,0.64642476]
[1757623248322,0.88627505,114380.0,114370.0,0.72512103]
[1757623252626,0.87192668,114380.0,114370.0,0.72512103]
[1757623254626,0.87192668,114380.0,114370.0,0.37832627]
[1757623254830,0.87192668,114380.0,114370.0,0.64642476]
[1757623256329,0.87192668,114380.0,114370.0,0.47302738]
[1757623258529,0.87192668,114380.0,114370.0,0.55172365]
[1757623260131,0.87192668,114380.0,114370.0,0.37832627]
[1757623260328,0.87192668,114380.0,114370.0,0.55172365]
[1757623261032,0.87192668,114380.0,114370.0,0.37832627]
[1757623261330,0.87192668,114380.0,114370.0,0.55172365]
[1757623261933,0.87192668,114380.0,114370.0,0.37832627]
[1757623262137,0.87192668,114380.0,114370.0,0.55172365]
[1757623263032,0.87192668,114380.0,114370.0,0.47302738]
[1757623265034,0.87192668,114380.0,114370.0,0.58244371]
[1757623266930,0.87192668,114380.0,114370.0,0.47302738]
[1757623268235,0.87192668,114380.0,114370.0,0.55172911]
[1757623268535,0.87192668,114380.0,114370.0,0.47302738]
[1757623269338,0.87192668,114380.0,114370.0,0.55172662]
[1757623269539,0.87192668,114380.0,114370.0,0.47302738]
[1757623270138,0.87192668,114380.0,114370.0,0.55172641]
[1757623270337,0.87192668,114380.0,114370.0,0.37832903]
[1757623270637,0.87192668,114380.0,114370.0,0.55172641]
[1757623272341,0.87192668,114380.0,114370.0,0.47302738]
[1757623272637,0.87192668,114380.0,114370.0,0.55172252]
[1757623282549,0.87192668,114380.0,114370.0,0.47302738]
[1757623286056,1.05664406,114380.0,114370.0,0.46028738]
[1757623287857,1.04532406,114380.0,114370.0,0.46028738]
[1757623288158,0.07944668,114380.0,114370.0,0.47371738]
[1757623288358,0.59964668,114380.0,114370.0,0.41594305]
[1757623289664,0.59964668,114380.0,114370.0,0.30032]
[1757623289856,0.59964668,114380.0,114370.0,0.41594305]
[1757623292061,0.59964668,114380.0,114370.0,0.49464145]
[1757623295760,0.59964668,114380.0,114370.0,0.23044145]
[1757623298965,0.59964668,114380.0,114370.0,0.1148184]
[1757623299166,0.59964668,114380.0,114370.0,0.23044145]
[1757623302066,0.59964668,114380.0,114370.0,0.15174305]
[1757623302471,0.59964668,114380.0,114370.0,0.26115938]
[1757623303675,0.59964668,114380.0,114370.0,0.23044804]
[1757623303877,0.59964668,114380.0,114370.0,0.15174305]
[1757623304079,0.59964668,114380.0,114370.0,0.26115938]
[1757623306082,0.59964668,114380.0,114370.0,0.15174305]
[1757623306580,0.86096668,114380.0,114370.0,0.07870192]
[1757623306780,1.36385278,114380.0,114370.0,0.07870192]
[1757623308681,0.57201278,114380.0,114370.0,0.07870192]
[1757623308983,1.36385278,114380.0,114370.0,0.07870192]
[1757623310885,1.36385278,114380.0,114360.0,0.07870192]
[1757623311185,0.99523413,114380.0,114370.0,0.04826378]
[1757623312284,1.11085718,114380.0,114370.0,0.04826378]
[1757623327690,1.11081718,114380.0,114370.0,0.04826378]
[1757623328301,0.99519413,114380.0,114370.0,0.04826378]
[1757623328491,0.99519413,114380.0,114370.0,0.06971378]
[1757623331202,0.20339413,114380.0,114370.0,0.06971378]
[1757623331396,0.99519413,114380.0,114370.0,0.06971378]
[1757623332904,0.99519413,114380.0,114370.0,0.04826378]
[1757623338600,0.20339413,114380.0,114370.0,0.04826378]
[1757623338807,0.99515413,114380.0,114370.0,0.04826378]
[1757623342409,0.99515413,114380.0,114370.0,0.1269657]
[1757623346106,0.99388413,114380.0,114370.0,0.04826378]
[1757623348312,1.22520574,114380.0,114370.0,0.06931378]
[1757623348909,1.22520574,114380.0,114370.0,0.24278611]
[1757623349109,1.22520574,114380.0,114370.0,0.06931378]
[1757623349816,1.19265574,114380.0,114370.0,0.04826378]
[1757623351020,0.84571108,114380.0,114370.0,0.04826378]
[1757623351313,1.01910341,114380.0,114370.0,0.04826378]
[1757623351516,0.22742341,114380.0,114370.0,0.04826378]
[1757623351709,1.01910341,114380.0,114370.0,0.04826378]
[1757623352315,1.01910341,114380.0,114370.0,0.22173611]
[1757623356216,1.19257574,114380.0,114370.0,0.22173611]
[1757623358120,1.19257574,114380.0,114370.0,0.04826378]
[1757623358919,1.19257574,114380.0,114370.0,0.22173611]
[1757623359313,1.19257574,114380.0,114370.0,0.17347233]
[1757623362322,1.19253574,114380.0,114370.0,0.17347233]
[1757623364925,1.01906341,114380.0,114370.0,0.17347233]
[1757623366322,0.22742341,114380.0,114370.0,0.17347233]
[1757623366515,1.01902341,114380.0,114370.0,0.17347233]
[1757623371425,0.05395108,114380.0,114370.0,0.17347233]
[1757623371622,0.96503233,114380.0,114370.0,0.17347233]
[1757623372727,0.17347233,114380.0,114370.0,0.17347233]
[1757623373026,0.96503233,114380.0,114370.0,0.17347233]
[1757623373323,1.03651972,114380.0,114370.0,0.17347233]
[1757623374534,1.03651972,114380.0,114360.0,0.07870192]
[1757623374732,1.03651972,114380.0,114370.0,0.22173611]
[1757623377234,1.03651972,114380.0,114370.0,0.04826378]
[1757623377533,1.03651972,114380.0,114370.0,0.22173611]
[1757623380642,1.0567383,114380.0,114370.0,0.22173611]
[1757623381141,0.2651783,114380.0,114370.0,0.22173611]
[1757623381350,1.0566983,114380.0,114370.0,0.22173611]
[1757623385250,0.09170597,114380.0,114370.0,0.22173611]
[1757623385447,0.88322597,114380.0,114370.0,0.39520844]
[1757623385951,0.88322597,114380.0,114370.0,0.04826378]
[1757623386148,0.88322597,114380.0,114370.0,0.22173611]
[1757623389046,1.0566983,114380.0,114370.0,0.22173611]
[1757623391238,1.0566983,114380.0,114370.0,0.04826378]
[1757623391444,1.0566983,114380.0,114370.0,0.22173611]
[1757623399349,1.0566983,114380.0,114370.0,0.30043803]
[1757623399549,0.88322597,114380.0,114370.0,0.30043803]
[1757623399755,1.0566983,114380.0,114370.0,0.30043803]
[1757623401756,1.0566983,114380.0,114370.0,0.1269657]
[1757623402054,1.0566983,114380.0,114370.0,0.30043803]
[1757623402858,1.0566983,114380.0,114370.0,0.1269657]
[1757623403055,1.0566983,114380.0,114370.0,0.30043803]
[1757623405057,1.0566983,114380.0,114370.0,0.1269657]
[1757623405256,1.0566983,114380.0,114370.0,0.30043803]
[1757623408760,1.0788883,114380.0,114370.0,0.33706803]
[1757623409062,1.0788083,114380.0,114370.0,0.33706803]
[1757623410362,0.90533597,114380.0,114370.0,0.27922441]
[1757623411866,0.11389597,114380.0,114370.0,0.27922441]
[1757623412062,0.90533597,114380.0,114370.0,0.27922441]
[1757623412261,0.90533597,114380.0,114370.0,0.1635957]
[1757623412462,0.90533597,114380.0,114370.0,0.27922441]
[1757623416273,0.90533597,114380.0,114370.0,0.20052249]
[1757623419275,0.90533597,114380.0,114370.0,0.15225871]
[1757623432378,0.90533597,114380.0,114370.0,0.23096063]
[1757623438184,0.90533597,114380.0,114370.0,0.15225871]
[1757623440188,0.90533597,114380.0,114370.0,0.03663]
[1757623440392,0.90533597,114380.0,114370.0,0.15225871]
[1757623440689,0.90533597,114380.0,114370.0,0.03663]
[1757623440882,0.90533597,114380.0,114370.0,0.15225871]
[1757623442487,0.88511739,114380.0,114370.0,0.15225871]
[1757623442691,0.89643739,114380.0,114360.0,0.37413068]
[1757623442988,1.0120661,114380.0,114370.0,0.04826378]
[1757623443392,1.0120661,114380.0,114370.0,0.16389249]
[1757623443588,1.0120661,114380.0,114370.0,0.24259441]
[1757623443789,1.0120661,114380.0,114370.0,0.1269657]
[1757623444488,1.0120661,114380.0,114370.0,0.04826378]
[1757623446988,1.0120661,114380.0,114370.0,0.07075378]
[1757623447387,1.0120661,114380.0,114370.0,0.04826378]
[1757623447993,0.89643739,114380.0,114370.0,0.04826378]
[1757623448196,1.0120661,114380.0,114370.0,0.04826378]
[1757623449790,1.0120661,114380.0,114370.0,0.1269657]
[1757623451294,1.0120661,114380.0,114370.0,0.04826378]
[1757623454499,1.0119861,114380.0,114370.0,0.07075378]
[1757623454696,1.0119861,114380.0,114370.0,0.04826378]
[1757623456202,0.2206261,114380.0,114370.0,0.04826378]
[1757623456404,1.0119861,114380.0,114370.0,0.04826378]
[1757623457501,1.0119861,114380.0,114370.0,0.07075378]
[1757623458300,0.2206261,114380.0,114370.0,0.07075378]
[1757623458502,1.0119461,114380.0,114370.0,0.07075378]
[1757623458903,0.10499739,114380.0,114370.0,0.07075378]
[1757623459104,1.0119461,114380.0,114370.0,0.18638249]
[1757623459400,0.89631739,114380.0,114370.0,0.18638249]
[1757623459594,0.89631739,114380.0,114370.0,0.26508441]
[1757623461604,0.10499739,114380.0,114370.0,0.26508441]
[1757623461805,0.89631739,114380.0,114370.0,0.26508441]
[1757623462702,0.88499739,114380.0,114370.0,0.27855441]
[1757623470317,1.05843704,114380.0,114370.0,0.33636535]
[1757623470820,1.05843704,114380.0,114370.0,0.32289535]
[1757623471016,1.06975704,114380.0,114370.0,0.32289535]
[1757623471216,1.05843704,114380.0,114370.0,0.33636535]
[1757623472118,1.05843704,114380.0,114370.0,0.25766343]
[1757623476624,0.88499739,114380.0,114370.0,0.25766343]
[1757623476825,1.05843704,114380.0,114370.0,0.25766343]
[1757623478828,1.05843704,114380.0,114370.0,0.08422378]
[1757623479330,1.05843704,114380.0,114370.0,0.20939965]
[1757623482231,1.05843704,114380.0,114370.0,0.28810157]
[1757623490634,0.88499739,114380.0,114370.0,0.28810157]
[1757623490833,1.05843704,114380.0,114370.0,0.28810157]
[1757623491128,0.88499739,114380.0,114370.0,0.28810157]
[1757623491334,1.05843704,114380.0,114370.0,0.28810157]
[1757623493139,0.88499739,114380.0,114370.0,0.28810157]
[1757623493326,1.05843704,114380.0,114370.0,0.28810157]
[1757623493937,1.05843704,114380.0,114370.0,0.11466192]
[1757623494140,1.05843704,114380.0,114370.0,0.28810157]
[1757623494441,1.05843704,114380.0,114370.0,0.20939965]
[1757623495441,1.06975704,114380.0,114370.0,0.19592965]
[1757623495635,1.06975704,114380.0,114370.0,0.17343965]
[1757623499046,1.06975704,114380.0,114370.0,0.19548965]
[1757623499448,1.06975704,114380.0,114360.0,0.35625192]
[1757623499643,1.06975704,114380.0,114370.0,0.22170343]
[1757623500649,1.24319669,114380.0,114370.0,0.04826378]
[1757623501357,1.24319669,114380.0,114370.0,0.22170343]
[1757623501655,1.24307669,114380.0,114370.0,0.22170343]
[1757623501955,0.45187669,114380.0,114370.0,0.04826378]
[1757623502157,1.06963704,114380.0,114370.0,0.24375343]
[1757623502853,1.05831704,114380.0,114370.0,0.25648343]
[1757623503059,0.26711704,114380.0,114370.0,0.25648343]
[1757623503253,1.05831704,114380.0,114370.0,0.25648343]
[1757623503652,0.26711704,114380.0,114370.0,0.25648343]
[1757623503851,1.05831704,114380.0,114370.0,0.25648343]
[1757623506259,0.26711704,114380.0,114370.0,0.25648343]
[1757623506456,1.05831704,114380.0,114370.0,0.25648343]
[1757623511762,0.26711704,114380.0,114370.0,0.25648343]
[1757623512259,1.05827704,114380.0,114370.0,0.25648343]
[1757623516062,0.26711704,114380.0,114370.0,0.25648343]
[1757623516251,1.05827704,114380.0,114370.0,0.25648343]
[1757623516657,1.07866766,114380.0,114370.0,0.25648343]
[1757623517963,0.28750766,114380.0,114370.0,0.25648343]
[1757623518155,0.90522801,114380.0,114370.0,0.25648343]
[1757623519057,0.11406801,114380.0,114370.0,0.25648343]
[1757623519256,0.90522801,114380.0,114370.0,0.25648343]
[1757623520060,0.90489377,114380.0,114370.0,0.25648343]
[1757623523067,0.90489377,114380.0,114370.0,0.33518535]
[1757623526066,0.90489377,114380.0,114370.0,0.59938535]
[1757623530376,0.90489377,114380.0,114370.0,0.57046307]
[1757623535473,0.88483739,114380.0,114370.0,0.57046307]
[1757623536376,0.90534247,114380.0,114370.0,0.57046307]
[1757623539080,0.90525957,114380.0,114370.0,0.57046307]
[1757623539277,0.90525957,114380.0,114370.0,0.52219929]
[1757623545284,0.88483739,114380.0,114370.0,0.52219929]
[1757623545779,0.88483739,114380.0,114370.0,0.44349737]
[1757623546179,0.90530948,114380.0,114370.0,0.44349737]
[1757623548785,0.11414948,114380.0,114370.0,0.44349737]
[1757623548989,0.90490522,114380.0,114370.0,0.44349737]
[1757623550290,0.90490522,114380.0,114370.0,0.52219929]
[1757623552094,0.90490522,114380.0,114370.0,0.51219929]
[1757623562405,0.90490522,114380.0,114370.0,0.43349737]
[1757623567711,0.90490522,114380.0,114370.0,0.28898]
[1757623567911,0.90490522,114380.0,114370.0,0.43349737]
[1757623572512,0.90490522,114380.0,114370.0,0.51219929]
[1757623581421,0.90490522,114380.0,114370.0,0.24799929]
[1757623587729,0.90490522,114380.0,114370.0,0.10348192]
[1757623587926,0.90490522,114380.0,114370.0,0.24799929]
[1757623588322,0.88475739,114380.0,114370.0,0.24799929]
[1757623588626,0.90534076,114380.0,114370.0,0.24799929]
[1757623589744,0.90534076,114380.0,114370.0,0.10348192]
[1757623589929,0.90534076,114380.0,114370.0,0.16929737]
[1757623591333,0.90534076,114380.0,114370.0,0.43349737]
[1757623592131,0.88475739,114380.0,114370.0,0.43349737]
[1757623592431,1.12183855,114380.0,114370.0,0.50578882]
[1757623601136,1.34996737,114380.0,114370.0,0.31246378]
[1757623601341,1.34996737,114380.0,114370.0,0.5292726]
[1757623601840,1.32969503,114380.0,114370.0,0.5292726]
[1757623602439,1.13350481,114380.0,114370.0,0.5292726]
[1757623603144,1.13350481,114380.0,114370.0,0.2650726]
[1757623603641,1.13330481,114380.0,114370.0,0.2873426]
[1757623605343,1.11268621,114380.0,114370.0,0.2873426]
[1757623606444,0.09367739,114380.0,114370.0,0.3009426]
[1757623606644,0.86232739,114380.0,114370.0,0.98456024]
[1757623606943,0.88499739,114380.0,114370.0,0.84645334]
[1757623607445,0.88499739,114380.0,114370.0,0.76775142]
[1757623607836,0.09415739,114380.0,114370.0,0.76775142]
[1757623608035,0.88499739,114380.0,114370.0,0.76775142]
[1757623609744,0.88499739,114380.0,114370.0,0.84645334]
[1757623611137,0.88499739,114380.0,114370.0,0.76775142]
[1757623612045,0.88499739,114380.0,114370.0,1.03195142]
[1757623612447,0.88499739,114380.0,114370.0,1.11065334]
[1757623624059,0.09415739,114380.0,114370.0,1.11065334]
[1757623624250,0.88491739,114380.0,114370.0,1.11065334]
[1757623630658,0.88487739,114380.0,114370.0,1.11065334]
[1757623633158,0.09415739,114380.0,114370.0,1.11065334]
[1757623633363,0.88487739,114380.0,114370.0,1.03195142]
[1757623634756,0.88487739,114380.0,114370.0,1.11061315]
[1757623635353,0.86216739,114380.0,114370.0,1.11061315]
[1757623635958,0.07148739,114380.0,114370.0,1.11061315]
[1757623636272,0.79068,114380.0,114370.0,1.03195142]
[1757623637967,0.86146125,114380.0,114370.0,1.03195142]
[1757623639462,0.86146125,114380.0,114370.0,1.14136775]
[1757623642572,0.86146125,114380.0,114370.0,0.87716775]
[1757623642763,0.88302125,114380.0,114370.0,0.44355011]
[1757623642964,0.86146125,114380.0,114370.0,0.87716775]
[1757623643669,0.88470125,114380.0,114370.0,0.87716775]
[1757623643871,0.86146125,114380.0,114370.0,0.87716775]
[1757623644076,0.88470125,114380.0,114370.0,0.87716775]
[1757623650076,0.88470125,114380.0,114370.0,0.44355011]
[1757623652282,0.88470125,114380.0,114370.0,0.87716775]
[1757623652781,0.88470125,114380.0,114370.0,0.76775142]
[1757623654485,0.88470125,114380.0,114370.0,0.6231296]
[1757623657586,0.88470125,114380.0,114370.0,0.70181118]
[1757623659385,0.88470125,114380.0,114370.0,0.4035474]
[1757623661692,0.88470125,114380.0,114370.0,0.11455158]
[1757623661880,0.88470125,114380.0,114370.0,0.4035474]
[1757623662392,0.88470125,114380.0,114370.0,0.32486582]
[1757623663786,0.88470125,114380.0,114370.0,0.43428215]
[1757623671496,0.90469539,114380.0,114370.0,0.43428215]
[1757623672094,0.11401539,114380.0,114370.0,0.43428215]
[1757623672296,0.90457539,114380.0,114370.0,0.43428215]
[1757623673791,0.90512417,114380.0,114370.0,0.43504926]
[1757623674196,0.11456417,114380.0,114370.0,0.43504926]
[1757623674401,0.90512417,114380.0,114370.0,0.43504926]
[1757623690416,0.88458125,114380.0,114370.0,0.43504926]
[1757623690603,0.90485438,114380.0,114370.0,0.43504926]
[1757623694018,0.90466926,114380.0,114370.0,0.43504926]
[1757623696110,0.90466926,114380.0,114370.0,0.32486582]
[1757623696408,0.88138926,114380.0,114370.0,0.43504926]
[1757623696608,0.90376926,114380.0,114370.0,0.43504926]
[1757623697820,0.90376926,114380.0,114370.0,0.51375418]
[1757623698017,0.90376926,114380.0,114370.0,0.40357074]
[1757623698620,0.88368125,114380.0,114370.0,0.40357074]
[1757623699413,0.90434539,114380.0,114370.0,0.40357074]